[Event "*** Titled Tuesday Blitz"]
[Site "Chess.com"]
[Date "2021.02.02"]
[Round "7"]
[White "kakakz"]
[Black "paulrusan"]
[Result "1-0"]
[WhiteElo "2455"]
[BlackElo "2255"]
[TimeControl "180+1"]
[EndTime "11:17:59 PST"]
[Termination "kakakz won by resignation"]

1. g3 {[%clk 0:03:00.9]} 1... c5 {[%clk 0:02:57.8]} 2. Bg2 {[%clk 0:03:01.8]}
2... Nc6 {[%clk 0:02:58.1]} 3. c4 {[%clk 0:03:02.4]} 3... g6 {[%clk 0:02:58]} 4.
b3 {[%clk 0:03:01.4]} 4... Bg7 {[%clk 0:02:58]} 5. Nc3 {[%clk 0:03:02.3]} 5...
Nf6 {[%clk 0:02:57.8]} 6. Bb2 {[%clk 0:03:02.5]} 6... O-O {[%clk 0:02:57.7]} 7.
Nf3 {[%clk 0:03:02.7]} 7... d6 {[%clk 0:02:57.7]} 8. O-O {[%clk 0:03:02.5]} 8...
Bg4 {[%clk 0:02:56]} 9. h3 {[%clk 0:03:01.8]} 9... Bd7 {[%clk 0:02:56]} 10. d4
{[%clk 0:03:01.3]} 10... Qc8 {[%clk 0:02:56.3]} 11. Kh2 {[%clk 0:03:00.6]} 11...
cxd4 {[%clk 0:02:56.6]} 12. Nb5 {[%clk 0:02:59.8]} 12... e5 {[%clk 0:02:51.8]}
13. Nxd6 {[%clk 0:02:59]} 13... Qc7 {[%clk 0:02:52.2]} 14. c5 {[%clk 0:02:56]}
14... b6 {[%clk 0:02:43]} 15. Nb5 {[%clk 0:02:52]} 15... Qd8 {[%clk 0:02:37.8]}
16. Ba3 {[%clk 0:02:42.7]} 16... Re8 {[%clk 0:02:28.8]} 17. Nd6 {[%clk
0:02:31.1]} 17... Re7 {[%clk 0:02:22.2]} 18. Rc1 {[%clk 0:02:26.1]} 18... bxc5
{[%clk 0:02:21.3]} 19. Bxc5 {[%clk 0:02:24.6]} 19... h6 {[%clk 0:02:16.4]} 20.
Nb7 {[%clk 0:02:18.8]} 20... Qe8 {[%clk 0:02:14.1]} 21. Bxe7 {[%clk 0:02:17.4]}
21... Qxe7 {[%clk 0:02:14.4]} 22. Nc5 {[%clk 0:02:17.1]} 22... Nd5 {[%clk
0:02:01.2]} 23. Nxd7 {[%clk 0:02:09.4]} 23... Qxd7 {[%clk 0:02:01]} 24. Rc5
{[%clk 0:01:54.4]} 24... e4 {[%clk 0:01:56.4]} 25. Nd2 {[%clk 0:01:51.9]} 25...
f5 {[%clk 0:01:56.2]} 26. Nxe4 {[%clk 0:01:38.3]} 26... fxe4 {[%clk 0:01:54.2]}
27. Bxe4 {[%clk 0:01:39.2]} 27... Nde7 {[%clk 0:01:51.2]} 28. Qc2 {[%clk
0:01:35.7]} 28... Rc8 {[%clk 0:01:38.4]} 29. Rc1 {[%clk 0:01:27.4]} 29... Kh7
{[%clk 0:01:24.2]} 30. Bxc6 {[%clk 0:01:23.8]} 30... Nxc6 {[%clk 0:01:23.4]} 31.
Rxc6 {[%clk 0:01:24.1]} 31... Rxc6 {[%clk 0:01:18.1]} 32. Qxc6 {[%clk
0:01:23.6]} 32... Qf5 {[%clk 0:01:17.9]} 33. Qf3 {[%clk 0:01:18.1]} 33... Qa5
{[%clk 0:01:13.4]} 34. Rc2 {[%clk 0:01:09.9]} 34... h5 {[%clk 0:01:12.8]} 35. h4
{[%clk 0:01:08.9]} 35... Qe1 {[%clk 0:01:10.6]} 36. Kg2 {[%clk 0:01:08.7]} 36...
a5 {[%clk 0:01:08.2]} 37. Qe4 {[%clk 0:01:06.3]} 37... Qb1 {[%clk 0:01:01.9]}
38. Qd3 {[%clk 0:01:06.2]} 38... a4 {[%clk 0:00:59.4]} 39. Rc6 {[%clk
0:01:05.9]} 39... Qxd3 {[%clk 0:00:52.5]} 40. exd3 {[%clk 0:01:06.8]} 40... axb3
{[%clk 0:00:50]} 41. axb3 {[%clk 0:01:07.7]} 41... Bf8 {[%clk 0:00:47.7]} 42.
Kf3 {[%clk 0:01:03.5]} 1-0

[Event "*** Titled Tuesday Blitz"]
[Site "Chess.com"]
[Date "2021.02.02"]
[Round "7"]
[White "awesomevishesh"]
[Black "olksuna"]
[Result "0-1"]
[WhiteElo "2496"]
[BlackElo "2687"]
[TimeControl "180+1"]
[EndTime "11:18:04 PST"]
[Termination "olksuna won on time"]

1. e4 {[%clk 0:03:00.9]} 1... c5 {[%clk 0:02:59.7]} 2. Nf3 {[%clk 0:03:00.4]}
2... e6 {[%clk 0:03:00.1]} 3. g3 {[%clk 0:02:58.1]} 3... Nc6 {[%clk 0:02:58.8]}
4. Bg2 {[%clk 0:02:57.8]} 4... Nf6 {[%clk 0:02:58.5]} 5. Qe2 {[%clk 0:02:57.6]}
5... d6 {[%clk 0:02:57.1]} 6. O-O {[%clk 0:02:57]} 6... Be7 {[%clk 0:02:57.4]}
7. c3 {[%clk 0:02:51.3]} 7... e5 {[%clk 0:02:55.5]} 8. Rd1 {[%clk 0:02:50.2]}
8... O-O {[%clk 0:02:54.7]} 9. d4 {[%clk 0:02:46.6]} 9... exd4 {[%clk
0:02:51.5]} 10. cxd4 {[%clk 0:02:45.7]} 10... Bg4 {[%clk 0:02:52.4]} 11. dxc5
{[%clk 0:02:25.7]} 11... Re8 {[%clk 0:02:34]} 12. h3 {[%clk 0:02:16.9]} 12...
Bh5 {[%clk 0:02:33.9]} 13. g4 {[%clk 0:01:43]} 13... Bg6 {[%clk 0:02:33.9]} 14.
e5 {[%clk 0:01:41.6]} 14... Ne4 {[%clk 0:02:09.8]} 15. cxd6 {[%clk 0:01:27.9]}
15... Bf8 {[%clk 0:02:01.4]} 16. Nc3 {[%clk 0:01:20.4]} 16... Nxd6 {[%clk
0:01:19.9]} 17. Bf4 {[%clk 0:00:42.6]} 17... Qa5 {[%clk 0:01:18.6]} 18. Rd5
{[%clk 0:00:40.8]} 18... Qb4 {[%clk 0:01:13.8]} 19. a3 {[%clk 0:00:24.6]} 19...
Qxf4 {[%clk 0:01:11.9]} 20. Rad1 {[%clk 0:00:03.3]} 20... Ne4 {[%clk 0:01:03.3]}
21. Nxe4 {[%clk 0:00:02.4]} 21... Bxe4 {[%clk 0:01:01.9]} 22. Rd7 {[%clk
0:00:01]} 22... Nxe5 {[%clk 0:00:57.8]} 0-1

[Event "*** Titled Tuesday Blitz"]
[Site "Chess.com"]
[Date "2021.02.02"]
[Round "7"]
[White "losersgame"]
[Black "AntonovaNadezhda"]
[Result "1-0"]
[WhiteElo "2370"]
[BlackElo "2157"]
[TimeControl "180+1"]
[EndTime "11:18:12 PST"]
[Termination "losersgame won on time"]

1. d4 {[%clk 0:03:00.9]} 1... Nf6 {[%clk 0:02:59.2]} 2. c4 {[%clk 0:03:01]} 2...
g6 {[%clk 0:02:59.4]} 3. Nc3 {[%clk 0:03:01.4]} 3... Bg7 {[%clk 0:03:00]} 4. e4
{[%clk 0:03:01.2]} 4... d6 {[%clk 0:03:00.3]} 5. f3 {[%clk 0:03:01.3]} 5... O-O
{[%clk 0:02:58.8]} 6. Be3 {[%clk 0:03:01.5]} 6... c5 {[%clk 0:02:57.7]} 7. d5
{[%clk 0:03:01.7]} 7... e6 {[%clk 0:02:50.1]} 8. Bd3 {[%clk 0:03:01]} 8... exd5
{[%clk 0:02:48.7]} 9. cxd5 {[%clk 0:03:01.9]} 9... Nbd7 {[%clk 0:02:33.9]} 10.
Nge2 {[%clk 0:03:01.2]} 10... a6 {[%clk 0:02:28.2]} 11. a4 {[%clk 0:03:00.7]}
11... b6 {[%clk 0:02:24.7]} 12. Ng3 {[%clk 0:02:59.6]} 12... Re8 {[%clk
0:02:23.7]} 13. O-O {[%clk 0:02:58.9]} 13... Ne5 {[%clk 0:02:22.6]} 14. Be2
{[%clk 0:02:58.6]} 14... h5 {[%clk 0:02:16.2]} 15. Qd2 {[%clk 0:02:58]} 15... h4
{[%clk 0:02:11.9]} 16. Nh1 {[%clk 0:02:58]} 16... Nh7 {[%clk 0:01:55.1]} 17. Nf2
{[%clk 0:02:51.2]} 17... f5 {[%clk 0:01:02.5]} 18. f4 {[%clk 0:02:36.9]} 18...
Ng4 {[%clk 0:00:55.1]} 19. Bxg4 {[%clk 0:02:18.4]} 19... fxg4 {[%clk 0:00:53.4]}
20. g3 {[%clk 0:02:19]} 20... h3 {[%clk 0:00:41.3]} 21. Rfe1 {[%clk 0:02:09.8]}
21... Bd7 {[%clk 0:00:37.8]} 22. Rab1 {[%clk 0:01:58.3]} 22... b5 {[%clk
0:00:36.3]} 23. axb5 {[%clk 0:01:58.3]} 23... axb5 {[%clk 0:00:36]} 24. b4
{[%clk 0:01:58.9]} 24... Ra3 {[%clk 0:00:20.8]} 25. Rec1 {[%clk 0:01:58.7]}
25... c4 {[%clk 0:00:16.1]} 26. Bd4 {[%clk 0:01:58.5]} 26... Bxd4 {[%clk
0:00:06]} 27. Qxd4 {[%clk 0:01:59.4]} 27... Qa8 {[%clk 0:00:06.4]} 28. e5 {[%clk
0:01:52.1]} 28... dxe5 {[%clk 0:00:05.2]} 29. fxe5 {[%clk 0:01:53]} 29... Bf5
{[%clk 0:00:05.2]} 30. e6 {[%clk 0:01:41.6]} 30... Ng5 {[%clk 0:00:05.2]} 31.
Qf6 {[%clk 0:01:22.1]} 31... Nf3+ {[%clk 0:00:03.2]} 32. Kh1 {[%clk 0:01:21.3]}
32... Qa7 {[%clk 0:00:02.2]} 33. Nxg4 {[%clk 0:01:15.6]} 33... Bxg4 {[%clk
0:00:01.3]} 34. Qxg6+ {[%clk 0:01:15.2]} 1-0

[Event "*** Titled Tuesday Blitz"]
[Site "Chess.com"]
[Date "2021.02.02"]
[Round "7"]
[White "tylityli"]
[Black "cukin84"]
[Result "0-1"]
[WhiteElo "2307"]
[BlackElo "2144"]
[TimeControl "180+1"]
[EndTime "11:18:12 PST"]
[Termination "cukin84 won by resignation"]

1. d4 {[%clk 0:03:00.9]} 1... f5 {[%clk 0:02:58.8]} 2. Nf3 {[%clk 0:02:59]} 2...
Nf6 {[%clk 0:02:59]} 3. c4 {[%clk 0:02:55.9]} 3... g6 {[%clk 0:02:59.2]} 4. b4
{[%clk 0:02:55.8]} 4... Bg7 {[%clk 0:02:59.3]} 5. Bb2 {[%clk 0:02:56.1]} 5...
O-O {[%clk 0:02:59.4]} 6. e3 {[%clk 0:02:56.5]} 6... a5 {[%clk 0:02:56.4]} 7. a3
{[%clk 0:02:55.5]} 7... axb4 {[%clk 0:02:55.7]} 8. axb4 {[%clk 0:02:56.4]} 8...
Rxa1 {[%clk 0:02:54.9]} 9. Bxa1 {[%clk 0:02:56.7]} 9... c6 {[%clk 0:02:50.2]}
10. Bd3 {[%clk 0:02:51.1]} 10... Na6 {[%clk 0:02:49.1]} 11. Qb3 {[%clk
0:02:48.9]} 11... Kh8 {[%clk 0:02:40.1]} 12. O-O {[%clk 0:02:48.4]} 12... d6
{[%clk 0:02:38.4]} 13. b5 {[%clk 0:02:48.3]} 13... Nc7 {[%clk 0:02:36.6]} 14.
Nc3 {[%clk 0:02:43.6]} 14... Be6 {[%clk 0:02:31.4]} 15. Bb2 {[%clk 0:02:40.4]}
15... Qd7 {[%clk 0:02:22.9]} 16. Ra1 {[%clk 0:02:24.5]} 16... cxb5 {[%clk
0:02:10]} 17. Nxb5 {[%clk 0:02:22.8]} 17... Na6 {[%clk 0:02:05.7]} 18. h3 {[%clk
0:02:13.2]} 18... Bg8 {[%clk 0:02:03.6]} 19. Rc1 {[%clk 0:02:05.7]} 19... Ne4
{[%clk 0:02:01.4]} 20. Qc2 {[%clk 0:02:03.5]} 20... Nb4 {[%clk 0:01:52.8]} 21.
Qb1 {[%clk 0:02:01.8]} 21... Nxd3 {[%clk 0:01:52.1]} 22. Qxd3 {[%clk 0:02:02.7]}
22... Rc8 {[%clk 0:01:49.5]} 23. Ra1 {[%clk 0:02:01.1]} 23... Bxc4 {[%clk
0:01:47.5]} 24. Qa3 {[%clk 0:01:52.7]} 24... Qxb5 {[%clk 0:01:37.3]} 25. Bc1
{[%clk 0:01:39.8]} 25... h6 {[%clk 0:01:33]} 26. h4 {[%clk 0:01:39]} 26... Kh7
{[%clk 0:01:32.1]} 27. Nd2 {[%clk 0:01:32.2]} 27... Nxd2 {[%clk 0:01:30.1]} 28.
Bxd2 {[%clk 0:01:33.1]} 28... Bd5 {[%clk 0:01:21]} 29. Be1 {[%clk 0:01:10.4]}
29... Qe2 {[%clk 0:01:20.2]} 30. Qb4 {[%clk 0:01:03.1]} 30... Qg4 {[%clk
0:01:15.3]} 31. f3 {[%clk 0:00:56.8]} 31... Bxf3 {[%clk 0:01:13.1]} 32. Qd2
{[%clk 0:00:57]} 32... Be4 {[%clk 0:01:08.3]} 33. Ra2 {[%clk 0:00:55.4]} 33...
Bf6 {[%clk 0:01:03.3]} 34. Qf2 {[%clk 0:00:48]} 34... Rc1 {[%clk 0:00:57.6]} 35.
Qd2 {[%clk 0:00:42.3]} 35... Rd1 {[%clk 0:00:50.6]} 36. Qf2 {[%clk 0:00:41.6]}
36... Bxh4 {[%clk 0:00:47.5]} 0-1

[Event "*** Titled Tuesday Blitz"]
[Site "Chess.com"]
[Date "2021.02.02"]
[Round "7"]
[White "Vesper2018"]
[Black "J36225"]
[Result "0-1"]
[WhiteElo "2585"]
[BlackElo "2448"]
[TimeControl "180+1"]
[EndTime "11:18:16 PST"]
[Termination "J36225 won on time"]

1. e4 {[%clk 0:03:00.9]} 1... e5 {[%clk 0:02:59.9]} 2. Nf3 {[%clk 0:02:59.9]}
2... Nc6 {[%clk 0:02:59.8]} 3. Bc4 {[%clk 0:02:59.1]} 3... Nf6 {[%clk
0:02:57.9]} 4. d3 {[%clk 0:02:58.9]} 4... Be7 {[%clk 0:02:57.1]} 5. O-O {[%clk
0:02:55.8]} 5... O-O {[%clk 0:02:55.7]} 6. Re1 {[%clk 0:02:55.2]} 6... d6 {[%clk
0:02:51.6]} 7. c3 {[%clk 0:02:54.6]} 7... Na5 {[%clk 0:02:48.9]} 8. Bb5 {[%clk
0:02:54.1]} 8... a6 {[%clk 0:02:47.9]} 9. Ba4 {[%clk 0:02:54.7]} 9... b5 {[%clk
0:02:47.6]} 10. Bc2 {[%clk 0:02:55.3]} 10... c5 {[%clk 0:02:47.5]} 11. Nbd2
{[%clk 0:02:51.6]} 11... Nc6 {[%clk 0:02:41.6]} 12. Nf1 {[%clk 0:02:51.1]} 12...
d5 {[%clk 0:02:35]} 13. exd5 {[%clk 0:02:09.4]} 13... Qxd5 {[%clk 0:02:35.9]}
14. h3 {[%clk 0:02:07]} 14... Bb7 {[%clk 0:02:29]} 15. Ne3 {[%clk 0:01:55.7]}
15... Qd7 {[%clk 0:02:26.9]} 16. d4 {[%clk 0:01:28.9]} 16... cxd4 {[%clk
0:02:20.2]} 17. cxd4 {[%clk 0:01:27.8]} 17... exd4 {[%clk 0:02:15.2]} 18. Nf5
{[%clk 0:01:26.6]} 18... Rfe8 {[%clk 0:02:10.9]} 19. Bg5 {[%clk 0:01:21]} 19...
Rad8 {[%clk 0:01:53.1]} 20. Nxe7+ {[%clk 0:01:09.1]} 20... Rxe7 {[%clk
0:01:52.7]} 21. Bxf6 {[%clk 0:01:08.9]} 21... Rxe1+ {[%clk 0:01:49.7]} 22. Qxe1
{[%clk 0:01:02.9]} 22... gxf6 {[%clk 0:01:49.4]} 23. Rd1 {[%clk 0:00:55.6]}
23... Qd5 {[%clk 0:01:44.9]} 24. Qd2 {[%clk 0:00:43]} 24... Ne5 {[%clk
0:01:37.1]} 25. Qh6 {[%clk 0:00:40.3]} 25... d3 {[%clk 0:01:22.9]} 26. Qxf6
{[%clk 0:00:10.8]} 26... Nxf3+ {[%clk 0:01:08]} 27. gxf3 {[%clk 0:00:10.2]}
27... dxc2 {[%clk 0:01:01.6]} 28. Qxd8+ {[%clk 0:00:03.2]} 28... Qxd8 {[%clk
0:01:00.7]} 29. Rxd8+ {[%clk 0:00:03.8]} 29... Kg7 {[%clk 0:01:00.6]} 0-1

[Event "*** Titled Tuesday Blitz"]
[Site "Chess.com"]
[Date "2021.02.02"]
[Round "7"]
[White "noblerone"]
[Black "bogcsab"]
[Result "0-1"]
[WhiteElo "2400"]
[BlackElo "2193"]
[TimeControl "180+1"]
[EndTime "11:18:17 PST"]
[Termination "bogcsab won by resignation"]

1. d4 {[%clk 0:03:00.9]} 1... Nf6 {[%clk 0:02:58.4]} 2. Nf3 {[%clk 0:03:00.9]}
2... g6 {[%clk 0:02:57.8]} 3. Bg5 {[%clk 0:03:00.8]} 3... Bg7 {[%clk 0:02:57.5]}
4. Nbd2 {[%clk 0:02:59.8]} 4... h6 {[%clk 0:02:57.2]} 5. Bh4 {[%clk 0:02:59.6]}
5... d6 {[%clk 0:02:55.4]} 6. c3 {[%clk 0:02:59.8]} 6... O-O {[%clk 0:02:55.4]}
7. e3 {[%clk 0:02:57.7]} 7... Nbd7 {[%clk 0:02:55.9]} 8. Bc4 {[%clk 0:02:57.5]}
8... e5 {[%clk 0:02:53.9]} 9. a4 {[%clk 0:02:51.7]} 9... c6 {[%clk 0:02:51.7]}
10. dxe5 {[%clk 0:02:46.1]} 10... dxe5 {[%clk 0:02:51.5]} 11. Qc2 {[%clk
0:02:40]} 11... Qe7 {[%clk 0:02:50.7]} 12. Qxg6 {[%clk 0:02:17.1]} 12... b5
{[%clk 0:02:38]} 13. Ba2 {[%clk 0:02:06.7]} 13... bxa4 {[%clk 0:02:13.4]} 14.
Ne4 {[%clk 0:01:43.4]} 14... a3 {[%clk 0:01:47.5]} 15. bxa3 {[%clk 0:01:03]}
15... Ba6 {[%clk 0:01:34.9]} 16. Nxf6+ {[%clk 0:00:57.6]} 16... Nxf6 {[%clk
0:01:33.3]} 17. Bxf6 {[%clk 0:00:32.1]} 17... Qxf6 {[%clk 0:01:31.1]} 18. Qxf6
{[%clk 0:00:32.3]} 18... Bxf6 {[%clk 0:01:31.4]} 19. O-O-O {[%clk 0:00:29.1]}
19... e4 {[%clk 0:01:22.8]} 20. Nd4 {[%clk 0:00:29]} 20... c5 {[%clk 0:01:22.7]}
21. Nf5 {[%clk 0:00:29.4]} 21... Bxc3 {[%clk 0:01:17.3]} 22. Nxh6+ {[%clk
0:00:25.2]} 22... Kh7 {[%clk 0:01:03.8]} 23. Nf5 {[%clk 0:00:24.9]} 23... Rab8
{[%clk 0:00:59.9]} 24. Nd6 {[%clk 0:00:14.5]} 24... Bb2+ {[%clk 0:00:53.9]} 25.
Kc2 {[%clk 0:00:14.7]} 25... Bd3+ {[%clk 0:00:49.8]} 26. Rxd3 {[%clk 0:00:14]}
26... exd3+ {[%clk 0:00:49.3]} 27. Kxd3 {[%clk 0:00:14.9]} 27... Rfd8 {[%clk
0:00:48.6]} 28. Kc2 {[%clk 0:00:13.5]} 28... Rxd6 {[%clk 0:00:45.9]} 29. Rb1
{[%clk 0:00:14.4]} 29... Rdb6 {[%clk 0:00:43.7]} 0-1

[Event "*** Titled Tuesday Blitz"]
[Site "Chess.com"]
[Date "2021.02.02"]
[Round "7"]
[White "Grammnik"]
[Black "Snegokhod"]
[Result "0-1"]
[WhiteElo "2387"]
[BlackElo "2531"]
[TimeControl "180+1"]
[EndTime "11:18:20 PST"]
[Termination "Snegokhod won by resignation"]

1. d4 {[%clk 0:03:00.9]} 1... Nf6 {[%clk 0:02:59.5]} 2. Nf3 {[%clk 0:03:00.2]}
2... g6 {[%clk 0:02:59.5]} 3. c4 {[%clk 0:02:59.9]} 3... Bg7 {[%clk 0:02:59.4]}
4. Nc3 {[%clk 0:02:59.7]} 4... d5 {[%clk 0:02:59.3]} 5. cxd5 {[%clk 0:03:00.2]}
5... Nxd5 {[%clk 0:02:59.2]} 6. e4 {[%clk 0:03:01.1]} 6... Nxc3 {[%clk
0:02:59.5]} 7. bxc3 {[%clk 0:03:02]} 7... c5 {[%clk 0:03:00]} 8. Rb1 {[%clk
0:03:01.8]} 8... O-O {[%clk 0:02:59.2]} 9. Be2 {[%clk 0:03:02.1]} 9... Nc6
{[%clk 0:02:59.2]} 10. d5 {[%clk 0:03:02]} 10... Ne5 {[%clk 0:02:59.8]} 11. Nxe5
{[%clk 0:03:01.3]} 11... Bxe5 {[%clk 0:03:00.7]} 12. Qd2 {[%clk 0:03:02]} 12...
e6 {[%clk 0:03:00.7]} 13. f4 {[%clk 0:02:57.2]} 13... Bg7 {[%clk 0:03:00.6]} 14.
O-O {[%clk 0:02:49.3]} 14... exd5 {[%clk 0:03:00.2]} 15. exd5 {[%clk 0:02:49.4]}
15... b6 {[%clk 0:02:56.3]} 16. c4 {[%clk 0:02:44.3]} 16... Bd4+ {[%clk
0:02:54.8]} 17. Kh1 {[%clk 0:02:43.4]} 17... Bf5 {[%clk 0:02:55]} 18. Bd3 {[%clk
0:02:43.3]} 18... Qd7 {[%clk 0:02:53.9]} 19. Qc2 {[%clk 0:02:43.3]} 19... Rfe8
{[%clk 0:02:52.1]} 20. Bb2 {[%clk 0:02:34.9]} 20... Re3 {[%clk 0:02:29]} 21.
Bxf5 {[%clk 0:02:32.8]} 21... Qxf5 {[%clk 0:02:29.3]} 22. Qxf5 {[%clk
0:02:08.8]} 22... gxf5 {[%clk 0:02:29.2]} 23. Bxd4 {[%clk 0:02:03.9]} 23... cxd4
{[%clk 0:02:29.1]} 24. Rbd1 {[%clk 0:01:57.9]} 24... Re4 {[%clk 0:02:26.4]} 25.
Rfe1 {[%clk 0:01:34.7]} 25... Rxe1+ {[%clk 0:02:18.4]} 26. Rxe1 {[%clk
0:01:34.5]} 26... Rc8 {[%clk 0:02:19]} 27. Rd1 {[%clk 0:01:28.3]} 27... Kf8
{[%clk 0:01:22.8]} 28. Rxd4 {[%clk 0:01:26.4]} 28... b5 {[%clk 0:01:22.7]} 29.
c5 {[%clk 0:01:14.7]} 29... Rxc5 {[%clk 0:01:22.2]} 30. g3 {[%clk 0:01:13.2]}
30... Ke7 {[%clk 0:01:22.1]} 31. Rd2 {[%clk 0:01:06.1]} 31... Kd6 {[%clk
0:01:21.7]} 32. Re2 {[%clk 0:01:06.3]} 32... Rxd5 {[%clk 0:01:18.6]} 33. Kg2
{[%clk 0:01:06.6]} 33... a5 {[%clk 0:01:16.1]} 34. Kh3 {[%clk 0:01:04.8]} 34...
b4 {[%clk 0:01:15.7]} 35. Kh4 {[%clk 0:01:05]} 35... a4 {[%clk 0:01:13.5]} 36.
Kg5 {[%clk 0:01:04.2]} 36... b3 {[%clk 0:00:59.1]} 37. axb3 {[%clk 0:01:03.5]}
37... axb3 {[%clk 0:00:59.6]} 38. Kh6 {[%clk 0:01:02.4]} 38... Rb5 {[%clk
0:00:57.2]} 39. Rb2 {[%clk 0:01:01.4]} 39... Kd5 {[%clk 0:00:52.6]} 40. Kxh7
{[%clk 0:01:01.5]} 40... Kc4 {[%clk 0:00:52.9]} 41. h4 {[%clk 0:01:01.5]} 41...
Kc3 {[%clk 0:00:53.3]} 42. Rb1 {[%clk 0:01:01.6]} 42... Kc2 {[%clk 0:00:53.6]}
43. Rf1 {[%clk 0:01:01.2]} 43... b2 {[%clk 0:00:54.1]} 44. h5 {[%clk 0:01:01.1]}
44... b1=Q {[%clk 0:00:52.1]} 45. Rxb1 {[%clk 0:01:00.9]} 45... Rxb1 {[%clk
0:00:52.1]} 46. h6 {[%clk 0:01:00.9]} 46... Kd3 {[%clk 0:00:51.8]} 47. Kg7
{[%clk 0:01:00.1]} 47... Ke4 {[%clk 0:00:51.6]} 48. h7 {[%clk 0:01:00.1]} 48...
Rh1 {[%clk 0:00:51]} 49. h8=Q {[%clk 0:00:58.1]} 49... Rxh8 {[%clk 0:00:50.7]}
50. Kxh8 {[%clk 0:00:59]} 50... Kf3 {[%clk 0:00:51.4]} 51. Kg7 {[%clk
0:00:59.8]} 51... Kxg3 {[%clk 0:00:51.7]} 52. Kf6 {[%clk 0:01:00.1]} 52... Kxf4
{[%clk 0:00:52]} 53. Kxf7 {[%clk 0:01:00.5]} 0-1

[Event "*** Titled Tuesday Blitz"]
[Site "Chess.com"]
[Date "2021.02.02"]
[Round "7"]
[White "swisspower96"]
[Black "PelinGorki"]
[Result "1-0"]
[WhiteElo "2659"]
[BlackElo "2467"]
[TimeControl "180+1"]
[EndTime "11:18:22 PST"]
[Termination "swisspower96 won on time"]

1. d4 {[%clk 0:03:00.9]} 1... Nf6 {[%clk 0:03:00.2]} 2. c4 {[%clk 0:03:00.4]}
2... e5 {[%clk 0:03:00.6]} 3. dxe5 {[%clk 0:02:58.9]} 3... Ng4 {[%clk
0:03:01.2]} 4. Bf4 {[%clk 0:02:57.3]} 4... Nc6 {[%clk 0:03:01.7]} 5. Nf3 {[%clk
0:02:56.7]} 5... Bb4+ {[%clk 0:03:02.3]} 6. Nbd2 {[%clk 0:02:57.1]} 6... Qe7
{[%clk 0:03:02.6]} 7. a3 {[%clk 0:02:57.3]} 7... Ncxe5 {[%clk 0:03:03]} 8. Nxe5
{[%clk 0:02:49.3]} 8... Nxe5 {[%clk 0:03:03.9]} 9. e3 {[%clk 0:02:49.8]} 9...
Bxd2+ {[%clk 0:03:03.6]} 10. Qxd2 {[%clk 0:02:50.1]} 10... O-O {[%clk
0:03:03.1]} 11. Be2 {[%clk 0:02:50.1]} 11... d6 {[%clk 0:03:01.7]} 12. O-O
{[%clk 0:02:48.5]} 12... a5 {[%clk 0:02:58.7]} 13. b4 {[%clk 0:02:45]} 13...
axb4 {[%clk 0:02:54.8]} 14. axb4 {[%clk 0:02:45.9]} 14... Bf5 {[%clk 0:02:52.2]}
15. Qc3 {[%clk 0:02:41.9]} 15... Ng6 {[%clk 0:02:43]} 16. Bg3 {[%clk 0:02:40.7]}
16... Rfd8 {[%clk 0:02:27.3]} 17. f3 {[%clk 0:02:21.3]} 17... Qe8 {[%clk
0:02:16.3]} 18. e4 {[%clk 0:02:08.7]} 18... Be6 {[%clk 0:01:50.6]} 19. c5 {[%clk
0:02:08.2]} 19... Qc6 {[%clk 0:01:18.2]} 20. b5 {[%clk 0:02:08.5]} 20... Qxc5+
{[%clk 0:01:06.9]} 21. Qxc5 {[%clk 0:02:08.3]} 21... dxc5 {[%clk 0:01:07.8]} 22.
Bxc7 {[%clk 0:02:08.7]} 22... Rdc8 {[%clk 0:01:04.8]} 23. b6 {[%clk 0:02:06.4]}
23... Rxa1 {[%clk 0:00:53.4]} 24. Rxa1 {[%clk 0:02:04.2]} 24... Bd7 {[%clk
0:00:28]} 25. Rc1 {[%clk 0:02:00.5]} 25... Nf8 {[%clk 0:00:28.2]} 26. Ba6 {[%clk
0:01:30.3]} 26... Bc6 {[%clk 0:00:06.8]} 27. Rxc5 {[%clk 0:01:29.6]} 27... Ra8
{[%clk 0:00:07.3]} 28. Bc4 {[%clk 0:01:17.7]} 28... Nd7 {[%clk 0:00:06.6]} 29.
Rf5 {[%clk 0:01:17.9]} 29... Ra1+ {[%clk 0:00:04.7]} 30. Kf2 {[%clk 0:01:17.3]}
30... Rb1 {[%clk 0:00:02.4]} 31. Rxf7 {[%clk 0:01:09]} 31... Rb2+ {[%clk
0:00:01.6]} 32. Kg3 {[%clk 0:01:08.3]} 32... Kh8 {[%clk 0:00:01.1]} 33. Be5
{[%clk 0:01:02.5]} 1-0

[Event "*** Titled Tuesday Blitz"]
[Site "Chess.com"]
[Date "2021.02.02"]
[Round "7"]
[White "Tartody"]
[Black "federicosellitti"]
[Result "1-0"]
[WhiteElo "2648"]
[BlackElo "2446"]
[TimeControl "180+1"]
[EndTime "11:18:24 PST"]
[Termination "Tartody won by resignation"]

1. Nf3 {[%clk 0:03:00.9]} 1... Nf6 {[%clk 0:02:59.3]} 2. b3 {[%clk 0:03:01.8]}
2... d6 {[%clk 0:02:57.7]} 3. Bb2 {[%clk 0:03:02.7]} 3... e5 {[%clk 0:02:58.4]}
4. d3 {[%clk 0:03:02.8]} 4... Nc6 {[%clk 0:02:58.8]} 5. c4 {[%clk 0:03:02.8]}
5... h6 {[%clk 0:02:53.7]} 6. Nc3 {[%clk 0:03:03.2]} 6... Be6 {[%clk 0:02:54.1]}
7. e4 {[%clk 0:03:00.9]} 7... Be7 {[%clk 0:02:53.8]} 8. Nd5 {[%clk 0:02:59.8]}
8... O-O {[%clk 0:02:48.8]} 9. Be2 {[%clk 0:02:59.6]} 9... Qd7 {[%clk
0:02:47.7]} 10. O-O {[%clk 0:02:57.6]} 10... Nd8 {[%clk 0:02:40.4]} 11. Nxe7+
{[%clk 0:02:40.9]} 11... Qxe7 {[%clk 0:02:40.3]} 12. d4 {[%clk 0:02:41.8]} 12...
exd4 {[%clk 0:02:25.8]} 13. Qxd4 {[%clk 0:02:37.8]} 13... Nc6 {[%clk 0:02:25.1]}
14. Qc3 {[%clk 0:02:37.8]} 14... Bg4 {[%clk 0:02:16.2]} 15. h3 {[%clk
0:02:07.7]} 15... Bh5 {[%clk 0:01:51.3]} 16. Rfe1 {[%clk 0:01:40.9]} 16... Rfe8
{[%clk 0:01:39.3]} 17. Bf1 {[%clk 0:01:02.2]} 17... Ne5 {[%clk 0:01:03.7]} 18.
Nd4 {[%clk 0:00:58.9]} 18... Bg6 {[%clk 0:00:58.1]} 19. f4 {[%clk 0:00:50.3]}
19... Nxe4 {[%clk 0:00:36.9]} 20. Qe3 {[%clk 0:00:38.8]} 20... Nc6 {[%clk
0:00:28.8]} 21. f5 {[%clk 0:00:35.1]} 21... Nxd4 {[%clk 0:00:29.3]} 22. Qxd4
{[%clk 0:00:34.2]} 22... Qe5 {[%clk 0:00:11.1]} 23. Qxe5 {[%clk 0:00:27]} 23...
dxe5 {[%clk 0:00:12]} 24. fxg6 {[%clk 0:00:26.8]} 1-0